[Event "Titled Tuesday Blitz April 18 Early 2023"]
[White "Bilan, Danila"]
[Black "Smirnov, Pavel"]
[WhiteFideId "24161918"]
[BlackFideId "4123425"]
[WhiteElo "2182"]
[BlackElo "2519"]
[Result "0-1"]
[Round "02"]
[TimeControl "180+2"]
[Date "2023.04.18"]
[WhiteClock "0:00:01"]
[BlackClock "0:01:09"]

1. d4 {[%clk 0:02:56]}  Nf6 {[%clk 0:02:52]} 2. Nf3 {[%clk 0:02:56]}  d5 {[%clk 0:02:50]} 3. c4 {[%clk 0:02:56]}  e6 {[%clk 0:02:50]} 4. Nc3 {[%clk 0:02:55]}  c6 {[%clk 0:02:51]} 5. Bg5 {[%clk 0:02:54]}  h6 {[%clk 0:02:50]} 6. Bxf6 {[%clk 0:02:54]}  Qxf6 {[%clk 0:02:51]} 7. e3 {[%clk 0:02:49]}  g6 {[%clk 0:02:51]} 8. Bd3 {[%clk 0:02:47]}  dxc4 {[%clk 0:02:48]} 9. Bxc4 {[%clk 0:02:47]}  Bg7 {[%clk 0:02:49]} 10. Ne5 {[%clk 0:02:37]}  O-O {[%clk 0:02:46]} 11. O-O {[%clk 0:02:35]}  c5 {[%clk 0:02:29]} 12. Ne4 {[%clk 0:02:32]}  Qe7 {[%clk 0:02:28]} 13. Qb3 {[%clk 0:01:50]}  cxd4 {[%clk 0:01:58]} 14. exd4 {[%clk 0:01:49]}  Nc6 {[%clk 0:01:57]} 15. Nxc6 {[%clk 0:01:26]}  bxc6 {[%clk 0:01:56]} 16. Rfd1 {[%clk 0:01:18]}  Rd8 {[%clk 0:01:54]} 17. Qe3 {[%clk 0:00:34]}  Rb8 {[%clk 0:01:26]} 18. Rd2 {[%clk 0:00:23]}  e5 {[%clk 0:01:18]} 19. dxe5 {[%clk 0:00:08]}  Rxd2 {[%clk 0:01:19]} 20. Qxd2 {[%clk 0:00:07]}  Qxe5 {[%clk 0:01:19]} 21. Qd8+ {[%clk 0:00:06]}  Kh7 {[%clk 0:01:13]} 22. Bxf7 {[%clk 0:00:04]}  Bf5 {[%clk 0:01:09]} 23. Bg8+ {[%clk 0:00:01]}  Kh8 {[%clk 0:01:09]} 0-1


[Site "https://www.chess.com"]

[Event "Titled Tuesday Blitz April 18 Early 2023"]
[White "Garv Gaur"]
[Black "Mahdavi, Reza"]
[WhiteFideId "45030839"]
[BlackFideId "12595926"]
[WhiteElo "2068"]
[BlackElo "2357"]
[Result "0-1"]
[Round "02"]
[TimeControl "180+2"]
[Date "2023.04.18"]
[WhiteClock "0:00:13"]
[BlackClock "0:01:01"]

1. Nf3 {[%clk 0:03:00]}  Nf6 {[%clk 0:02:59]} 2. c4 {[%clk 0:02:58]}  g6 {[%clk 0:03:00]} 3. Nc3 {[%clk 0:02:57]}  Bg7 {[%clk 0:03:00]} 4. g3 {[%clk 0:02:56]}  O-O {[%clk 0:03:00]} 5. Bg2 {[%clk 0:02:57]}  d6 {[%clk 0:03:01]} 6. O-O {[%clk 0:02:56]}  c6 {[%clk 0:03:01]} 7. d4 {[%clk 0:02:56]}  Qa5 {[%clk 0:03:01]} 8. h3 {[%clk 0:02:54]}  Be6 {[%clk 0:02:51]} 9. Qd3 {[%clk 0:02:47]}  Qa6 {[%clk 0:02:46]} 10. Nd2 {[%clk 0:02:40]}  d5 {[%clk 0:02:44]} 11. b3 {[%clk 0:02:35]}  Rd8 {[%clk 0:02:43]} 12. Bb2 {[%clk 0:02:30]}  dxc4 {[%clk 0:02:44]} 13. bxc4 {[%clk 0:02:29]}  Nbd7 {[%clk 0:02:42]} 14. e4 {[%clk 0:02:23]}  Ne5 {[%clk 0:02:37]} 15. Qe3 {[%clk 0:02:07]}  Nxc4 {[%clk 0:02:37]} 16. Nxc4 {[%clk 0:02:07]}  Bxc4 {[%clk 0:02:37]} 17. Rfd1 {[%clk 0:02:07]}  Rd7 {[%clk 0:02:34]} 18. d5 {[%clk 0:01:59]}  cxd5 {[%clk 0:02:31]} 19. e5 {[%clk 0:02:00]}  Ne8 {[%clk 0:02:26]} 20. Nxd5 {[%clk 0:01:45]}  Bxd5 {[%clk 0:02:01]} 21. Bxd5 {[%clk 0:01:46]}  e6 {[%clk 0:01:42]} 22. Bb3 {[%clk 0:01:36]}  Rad8 {[%clk 0:01:42]} 23. Rxd7 {[%clk 0:01:32]}  Rxd7 {[%clk 0:01:43]} 24. Rc1 {[%clk 0:01:32]}  b6 {[%clk 0:01:35]} 25. Qe4 {[%clk 0:01:24]}  Rd8 {[%clk 0:01:28]} 26. Qc6 {[%clk 0:01:08]}  Qe2 {[%clk 0:01:23]} 27. Ba3 {[%clk 0:01:04]}  Bxe5 {[%clk 0:01:15]} 28. Be7 {[%clk 0:01:00]}  Rb8 {[%clk 0:01:14]} 29. Bb4 {[%clk 0:00:18]}  Bd4 {[%clk 0:01:10]} 30. Rf1 {[%clk 0:00:17]}  Qe5 {[%clk 0:01:08]} 31. Re1 {[%clk 0:00:15]}  Qxg3+ {[%clk 0:01:09]} 32. Kh1 {[%clk 0:00:15]}  Qxh3+ {[%clk 0:01:08]} 33. Kg1 {[%clk 0:00:16]}  Qg4+ {[%clk 0:01:07]} 34. Kh1 {[%clk 0:00:16]}  Bxf2 {[%clk 0:01:07]} 35. Bxe6 {[%clk 0:00:12]}  fxe6 {[%clk 0:01:01]} 36. Qxe6+ {[%clk 0:00:12]}  Qxe6 {[%clk 0:01:01]} 37. Rxe6 {[%clk 0:00:13]} 0-1


[Site "https://www.chess.com"]

[Event "Titled Tuesday Blitz April 18 Early 2023"]
[White "Gubajdullin, Alexei"]
[Black "Yuan, Qingyu"]
[WhiteFideId "4141202"]
[BlackFideId "8609772"]
[WhiteElo "2279"]
[BlackElo "2359"]
[Result "0-1"]
[Round "02"]
[TimeControl "180+2"]
[Date "2023.04.18"]
[WhiteClock "0:00:12"]
[BlackClock "0:00:24"]

1. d4 {[%clk 0:03:00]}  d5 {[%clk 0:03:00]} 2. Nf3 {[%clk 0:03:00]}  Nf6 {[%clk 0:03:00]} 3. Bf4 {[%clk 0:03:00]}  c5 {[%clk 0:03:00]} 4. e3 {[%clk 0:03:00]}  Nc6 {[%clk 0:03:01]} 5. Nbd2 {[%clk 0:02:59]}  cxd4 {[%clk 0:03:01]} 6. exd4 {[%clk 0:02:59]}  Bf5 {[%clk 0:03:02]} 7. c3 {[%clk 0:02:59]}  e6 {[%clk 0:03:02]} 8. Qb3 {[%clk 0:02:59]}  Qc8 {[%clk 0:03:03]} 9. Ne5 {[%clk 0:02:52]}  Bd6 {[%clk 0:02:46]} 10. Bg3 {[%clk 0:02:45]}  Qc7 {[%clk 0:02:41]} 11. f4 {[%clk 0:02:31]}  O-O {[%clk 0:02:38]} 12. Be2 {[%clk 0:02:29]}  Ne7 {[%clk 0:02:27]} 13. Bh4 {[%clk 0:02:23]}  Ne4 {[%clk 0:02:25]} 14. Nxe4 {[%clk 0:01:35]}  Bxe4 {[%clk 0:02:25]} 15. O-O {[%clk 0:01:33]}  f6 {[%clk 0:02:19]} 16. Nd3 {[%clk 0:01:32]}  Nf5 {[%clk 0:02:01]} 17. Bg3 {[%clk 0:01:29]}  g5 {[%clk 0:01:35]} 18. Qd1 {[%clk 0:01:00]}  Ne3 {[%clk 0:01:22]} 19. Qd2 {[%clk 0:01:00]}  Nxg2 {[%clk 0:01:10]} 20. Bg4 {[%clk 0:00:38]}  f5 {[%clk 0:00:56]} 21. Bf3 {[%clk 0:00:37]}  gxf4 {[%clk 0:00:42]} 22. Qxg2 {[%clk 0:00:26]}  fxg3 {[%clk 0:00:39]} 23. Ne5 {[%clk 0:00:23]}  Bxe5 {[%clk 0:00:36]} 24. dxe5 {[%clk 0:00:23]}  Qxe5 {[%clk 0:00:35]} 25. hxg3 {[%clk 0:00:23]}  Kh8 {[%clk 0:00:33]} 26. Kh2 {[%clk 0:00:20]}  Rg8 {[%clk 0:00:33]} 27. Bxe4 {[%clk 0:00:19]}  dxe4 {[%clk 0:00:33]} 28. Qh3 {[%clk 0:00:17]}  Rg6 {[%clk 0:00:31]} 29. Rf4 {[%clk 0:00:17]}  Rag8 {[%clk 0:00:29]} 30. Rh4 {[%clk 0:00:16]}  Qxg3+ {[%clk 0:00:28]} 31. Qxg3 {[%clk 0:00:15]}  Rxg3 {[%clk 0:00:29]} 32. Rd1 {[%clk 0:00:15]}  Rg2+ {[%clk 0:00:19]} 33. Kh1 {[%clk 0:00:14]}  e3 {[%clk 0:00:19]} 34. Re1 {[%clk 0:00:14]}  e2 {[%clk 0:00:19]} 35. Rd4 {[%clk 0:00:11]}  Rg1+ {[%clk 0:00:19]} 36. Rxg1 {[%clk 0:00:11]}  Rxg1+ {[%clk 0:00:20]} 37. Kxg1 {[%clk 0:00:11]}  e1=Q+ {[%clk 0:00:21]} 38. Kg2 {[%clk 0:00:11]}  Qe2+ {[%clk 0:00:22]} 39. Kh3 {[%clk 0:00:11]}  Qxb2 {[%clk 0:00:22]} 40. Rd8+ {[%clk 0:00:11]}  Kg7 {[%clk 0:00:23]} 41. Kh4 {[%clk 0:00:11]}  Qxa2 {[%clk 0:00:21]} 42. Kg5 {[%clk 0:00:11]}  Qg2+ {[%clk 0:00:20]} 43. Kf4 {[%clk 0:00:11]}  Qf2+ {[%clk 0:00:19]} 44. Ke5 {[%clk 0:00:11]}  Qe3+ {[%clk 0:00:20]} 45. Kd6 {[%clk 0:00:10]}  Qd3+ {[%clk 0:00:20]} 46. Ke7 {[%clk 0:00:10]}  Qxd8+ {[%clk 0:00:21]} 47. Kxd8 {[%clk 0:00:10]}  e5 {[%clk 0:00:22]} 48. c4 {[%clk 0:00:10]}  e4 {[%clk 0:00:23]} 49. c5 {[%clk 0:00:11]}  e3 {[%clk 0:00:23]} 50. c6 {[%clk 0:00:12]}  bxc6 {[%clk 0:00:24]} 0-1


[Site "https://www.chess.com"]

[Event "Titled Tuesday Blitz April 18 Early 2023"]
[White "Ronka, Erik"]
[Black "Harshavardhan G B"]
[WhiteFideId "505080"]
[BlackFideId "25059009"]
[WhiteElo "2264"]
[BlackElo "2323"]
[Result "0-1"]
[Round "02"]
[TimeControl "180+2"]
[Date "2023.04.18"]
[WhiteClock "0:00:52"]
[BlackClock "0:02:33"]

1. e4 {[%clk 0:03:00]}  e5 {[%clk 0:02:54]} 2. Nf3 {[%clk 0:03:00]}  Nc6 {[%clk 0:02:55]} 3. Bb5 {[%clk 0:03:01]}  a6 {[%clk 0:02:54]} 4. Ba4 {[%clk 0:03:02]}  d6 {[%clk 0:02:55]} 5. O-O {[%clk 0:02:57]}  Bg4 {[%clk 0:02:53]} 6. h3 {[%clk 0:02:56]}  h5 {[%clk 0:02:49]} 7. d4 {[%clk 0:02:52]}  b5 {[%clk 0:02:46]} 8. Bb3 {[%clk 0:02:50]}  Nxd4 {[%clk 0:02:47]} 9. hxg4 {[%clk 0:02:49]}  Nxb3 {[%clk 0:02:47]} 10. axb3 {[%clk 0:02:47]}  hxg4 {[%clk 0:02:48]} 11. Ng5 {[%clk 0:02:46]}  Qd7 {[%clk 0:02:49]} 12. c4 {[%clk 0:02:32]}  b4 {[%clk 0:02:46]} 13. f4 {[%clk 0:01:53]}  c6 {[%clk 0:02:39]} 14. fxe5 {[%clk 0:01:29]}  Qa7+ {[%clk 0:02:37]} 15. Rf2 {[%clk 0:00:51]}  g3 {[%clk 0:02:35]} 16. Qf3 {[%clk 0:00:52]}  gxf2+ {[%clk 0:02:33]} 17. Kf1 {[%clk 0:00:52]}  Rh1+ {[%clk 0:02:33]} 0-1


[Site "https://www.chess.com"]

[Event "Titled Tuesday Blitz April 18 Early 2023"]
[White "Golubev, Mikhail"]
[Black "Aradhya, Garg"]
[WhiteFideId "14100983"]
[BlackFideId "25006746"]
[WhiteElo "2374"]
[BlackElo "2263"]
[Result "0-1"]
[Round "02"]
[TimeControl "180+2"]
[Date "2023.04.18"]
[WhiteClock "0:00:47"]
[BlackClock "0:02:26"]

1. e4 {[%clk 0:03:00]}  e5 {[%clk 0:02:57]} 2. Nf3 {[%clk 0:03:00]}  Nc6 {[%clk 0:02:58]} 3. Bc4 {[%clk 0:03:00]}  Nf6 {[%clk 0:02:57]} 4. Ng5 {[%clk 0:03:00]}  d5 {[%clk 0:02:57]} 5. exd5 {[%clk 0:03:00]}  b5 {[%clk 0:02:57]} 6. Bf1 {[%clk 0:02:58]}  Nxd5 {[%clk 0:02:57]} 7. d4 {[%clk 0:02:53]}  Nxd4 {[%clk 0:02:54]} 8. c3 {[%clk 0:02:51]}  Nc6 {[%clk 0:02:39]} 9. Bxb5 {[%clk 0:02:41]}  Bb7 {[%clk 0:02:39]} 10. O-O {[%clk 0:02:38]}  Be7 {[%clk 0:02:37]} 11. Nf3 {[%clk 0:02:35]}  O-O {[%clk 0:02:36]} 12. Bxc6 {[%clk 0:02:30]}  Bxc6 {[%clk 0:02:36]} 13. Nxe5 {[%clk 0:02:31]}  Bb7 {[%clk 0:02:36]} 14. Qb3 {[%clk 0:01:58]}  Rb8 {[%clk 0:02:32]} 15. Rd1 {[%clk 0:01:57]}  Bd6 {[%clk 0:02:32]} 16. Rxd5 {[%clk 0:01:19]}  Bxd5 {[%clk 0:02:28]} 17. Qxd5 {[%clk 0:01:20]}  Bxe5 {[%clk 0:02:28]} 18. Qxd8 {[%clk 0:01:09]}  Rfxd8 {[%clk 0:02:27]} 19. Nd2 {[%clk 0:00:50]}  Bf4 {[%clk 0:02:26]} 20. Nf1 {[%clk 0:00:47]}  Rd1 {[%clk 0:02:26]} 0-1


[Site "https://www.chess.com"]

[Event "Titled Tuesday Blitz April 18 Early 2023"]
[White "Vivas Zamora, Fabian Ernesto"]
[Black "Srihari L R"]
[WhiteFideId "3902480"]
[BlackFideId "46617116"]
[WhiteElo "2262"]
[BlackElo "2334"]
[Result "0-1"]
[Round "02"]
[TimeControl "180+2"]
[Date "2023.04.18"]
[WhiteClock "0:00:01"]
[BlackClock "0:01:20"]

1. e4 {[%clk 0:02:56]}  d6 {[%clk 0:02:59]} 2. d4 {[%clk 0:02:56]}  Nf6 {[%clk 0:02:59]} 3. Nc3 {[%clk 0:02:56]}  e5 {[%clk 0:02:59]} 4. Nge2 {[%clk 0:02:53]}  exd4 {[%clk 0:02:58]} 5. Nxd4 {[%clk 0:02:53]}  Be7 {[%clk 0:02:58]} 6. Bf4 {[%clk 0:02:53]}  O-O {[%clk 0:02:58]} 7. Qd2 {[%clk 0:02:54]}  d5 {[%clk 0:02:57]} 8. O-O-O {[%clk 0:02:42]}  dxe4 {[%clk 0:02:38]} 9. Bc4 {[%clk 0:02:18]}  c6 {[%clk 0:02:12]} 10. Rhe1 {[%clk 0:02:05]}  Bb4 {[%clk 0:01:50]} 11. Bg5 {[%clk 0:01:25]}  Bg4 {[%clk 0:01:37]} 12. f3 {[%clk 0:01:09]}  exf3 {[%clk 0:01:36]} 13. gxf3 {[%clk 0:01:10]}  Bh5 {[%clk 0:01:36]} 14. Qf4 {[%clk 0:01:04]}  Nbd7 {[%clk 0:01:35]} 15. Nf5 {[%clk 0:00:55]}  Bxc3 {[%clk 0:01:34]} 16. bxc3 {[%clk 0:00:54]}  Qa5 {[%clk 0:01:25]} 17. Rg1 {[%clk 0:00:20]}  Bg6 {[%clk 0:01:24]} 18. Ne7+ {[%clk 0:00:08]}  Kh8 {[%clk 0:01:23]} 19. h4 {[%clk 0:00:06]}  Qa3+ {[%clk 0:01:20]} 20. Kb1 {[%clk 0:00:05]}  Qxe7 {[%clk 0:01:20]} 21. h5 {[%clk 0:00:01]}  Nxh5 {[%clk 0:01:20]} 0-1


[Site "https://www.chess.com"]

[Event "Titled Tuesday Blitz April 18 Early 2023"]
[White "Iliaguev, Nisim"]
[Black "Matveeva, Olga"]
[WhiteFideId "2817276"]
[BlackFideId "24107018"]
[WhiteElo "2241"]
[BlackElo "2056"]
[Result "1-0"]
[Round "02"]
[TimeControl "180+2"]
[Date "2023.04.18"]
[WhiteClock "0:01:40"]
[BlackClock "0:01:00"]

1. c4 {[%clk 0:03:00]}  e6 {[%clk 0:02:58]} 2. g3 {[%clk 0:03:00]}  Nf6 {[%clk 0:02:58]} 3. Bg2 {[%clk 0:03:01]}  d5 {[%clk 0:02:58]} 4. Nf3 {[%clk 0:03:01]}  Be7 {[%clk 0:02:56]} 5. O-O {[%clk 0:03:02]}  O-O {[%clk 0:02:56]} 6. b3 {[%clk 0:03:02]}  c5 {[%clk 0:02:56]} 7. Bb2 {[%clk 0:03:02]}  Nc6 {[%clk 0:02:56]} 8. d3 {[%clk 0:03:01]}  b6 {[%clk 0:02:51]} 9. Nbd2 {[%clk 0:03:01]}  Bb7 {[%clk 0:02:50]} 10. Rc1 {[%clk 0:03:00]}  Rc8 {[%clk 0:02:49]} 11. cxd5 {[%clk 0:02:58]}  Nxd5 {[%clk 0:02:50]} 12. Nc4 {[%clk 0:02:57]}  Bf6 {[%clk 0:02:47]} 13. Qd2 {[%clk 0:02:56]}  Bxb2 {[%clk 0:02:42]} 14. Qxb2 {[%clk 0:02:57]}  Qe7 {[%clk 0:02:38]} 15. Rfd1 {[%clk 0:02:56]}  Rfd8 {[%clk 0:02:38]} 16. a3 {[%clk 0:02:55]}  h6 {[%clk 0:02:23]} 17. h4 {[%clk 0:02:52]}  Nf6 {[%clk 0:02:21]} 18. Rb1 {[%clk 0:02:42]}  Nd4 {[%clk 0:02:14]} 19. Nxd4 {[%clk 0:02:40]}  Bxg2 {[%clk 0:02:13]} 20. Nxe6 {[%clk 0:02:24]}  Ba8 {[%clk 0:01:43]} 21. Nxd8 {[%clk 0:02:20]}  Rxd8 {[%clk 0:01:43]} 22. Qe5 {[%clk 0:02:17]}  Qb7 {[%clk 0:01:41]} 23. e4 {[%clk 0:02:17]}  Re8 {[%clk 0:01:33]} 24. Qf5 {[%clk 0:02:02]}  Qc6 {[%clk 0:01:23]} 25. Re1 {[%clk 0:01:51]}  g6 {[%clk 0:01:21]} 26. Qf4 {[%clk 0:01:49]}  Kg7 {[%clk 0:01:20]} 27. Qd6 {[%clk 0:01:44]}  Qb7 {[%clk 0:01:19]} 28. b4 {[%clk 0:01:42]}  Nxe4 {[%clk 0:01:01]} 29. dxe4 {[%clk 0:01:39]}  Rxe4 {[%clk 0:01:00]} 30. Rxe4 {[%clk 0:01:39]}  Qxe4 {[%clk 0:01:00]} 31. Qe5+ {[%clk 0:01:40]} 1-0


[Site "https://www.chess.com"]

[Event "Titled Tuesday Blitz April 18 Early 2023"]
[White "Andrews, Todd"]
[Black "Djordjevic, Vuk"]
[WhiteFideId "2012456"]
[BlackFideId "902098"]
[WhiteElo "2420"]
[BlackElo "2452"]
[Result "1-0"]
[Round "02"]
[TimeControl "180+2"]
[Date "2023.04.18"]
[WhiteClock "0:00:09"]
[BlackClock "0:00:01"]

1. e4 {[%clk 0:03:00]}  d5 {[%clk 0:02:59]} 2. exd5 {[%clk 0:03:00]}  Qxd5 {[%clk 0:03:00]} 3. Nc3 {[%clk 0:03:00]}  Qd6 {[%clk 0:03:00]} 4. h3 {[%clk 0:03:00]}  Nf6 {[%clk 0:03:01]} 5. Nf3 {[%clk 0:03:00]}  c6 {[%clk 0:03:00]} 6. d4 {[%clk 0:03:00]}  g6 {[%clk 0:03:00]} 7. Bd3 {[%clk 0:03:00]}  Bg7 {[%clk 0:03:01]} 8. Qe2 {[%clk 0:03:00]}  O-O {[%clk 0:03:00]} 9. O-O {[%clk 0:02:59]}  Nbd7 {[%clk 0:03:00]} 10. Bg5 {[%clk 0:02:45]}  Nb6 {[%clk 0:02:54]} 11. Rad1 {[%clk 0:02:45]}  Nbd5 {[%clk 0:02:51]} 12. Ne4 {[%clk 0:02:41]}  Nxe4 {[%clk 0:02:50]} 13. Bxe4 {[%clk 0:02:41]}  Re8 {[%clk 0:02:32]} 14. c3 {[%clk 0:02:41]}  Nf6 {[%clk 0:02:12]} 15. Bc2 {[%clk 0:02:37]}  Be6 {[%clk 0:02:12]} 16. Rfe1 {[%clk 0:02:22]}  c5 {[%clk 0:01:59]} 17. Bh4 {[%clk 0:01:44]}  Bxa2 {[%clk 0:01:48]} 18. b3 {[%clk 0:01:38]}  Nd5 {[%clk 0:01:19]} 19. Qd2 {[%clk 0:01:05]}  Rac8 {[%clk 0:01:09]} 20. Ra1 {[%clk 0:01:00]}  cxd4 {[%clk 0:01:01]} 21. Rxa2 {[%clk 0:00:43]}  dxc3 {[%clk 0:01:01]} 22. Qd1 {[%clk 0:00:34]}  Nb4 {[%clk 0:01:00]} 23. Rxa7 {[%clk 0:00:34]}  Qxd1 {[%clk 0:00:59]} 24. Bxd1 {[%clk 0:00:34]}  c2 {[%clk 0:00:56]} 25. Bxc2 {[%clk 0:00:35]}  Nxc2 {[%clk 0:00:24]} 26. Rxe7 {[%clk 0:00:34]}  Rxe7 {[%clk 0:00:24]} 27. Bxe7 {[%clk 0:00:35]}  b5 {[%clk 0:00:22]} 28. Rb7 {[%clk 0:00:33]}  Nd4 {[%clk 0:00:21]} 29. Nxd4 {[%clk 0:00:30]}  Bxd4 {[%clk 0:00:22]} 30. Rxb5 {[%clk 0:00:29]}  Rc1+ {[%clk 0:00:22]} 31. Kh2 {[%clk 0:00:28]}  Bxf2 {[%clk 0:00:21]} 32. Bf6 {[%clk 0:00:24]}  Bg1+ {[%clk 0:00:20]} 33. Kg3 {[%clk 0:00:24]}  Rc8 {[%clk 0:00:15]} 34. Rb7 {[%clk 0:00:23]}  Bc5 {[%clk 0:00:10]} 35. b4 {[%clk 0:00:23]}  Bd6+ {[%clk 0:00:07]} 36. Kf3 {[%clk 0:00:23]}  Kf8 {[%clk 0:00:05]} 37. b5 {[%clk 0:00:23]}  Ke8 {[%clk 0:00:05]} 38. Ke4 {[%clk 0:00:23]}  Rc5 {[%clk 0:00:05]} 39. b6 {[%clk 0:00:16]}  Rb5 {[%clk 0:00:05]} 40. Bd4 {[%clk 0:00:14]}  h5 {[%clk 0:00:05]} 41. g4 {[%clk 0:00:14]}  hxg4 {[%clk 0:00:04]} 42. hxg4 {[%clk 0:00:15]}  f5+ {[%clk 0:00:04]} 43. gxf5 {[%clk 0:00:14]}  gxf5+ {[%clk 0:00:05]} 44. Kd3 {[%clk 0:00:15]}  Kd8 {[%clk 0:00:06]} 45. Kc4 {[%clk 0:00:15]}  Rb1 {[%clk 0:00:04]} 46. Kd5 {[%clk 0:00:15]}  Bg3 {[%clk 0:00:04]} 47. Rf7 {[%clk 0:00:13]}  Rb5+ {[%clk 0:00:02]} 48. Kc6 {[%clk 0:00:13]}  Ra5 {[%clk 0:00:02]} 49. Bc5 {[%clk 0:00:09]}  Bh4 {[%clk 0:00:01]} 50. Rf8# {[%clk 0:00:09]} 1-0


[Site "https://www.chess.com"]

[Event "Titled Tuesday Blitz April 18 Early 2023"]
[White "Jaferian, Koosha"]
[Black "Akylbek2021"]
[WhiteFideId "12507440"]
[WhiteElo "2073"]
[BlackElo "2395"]
[Result "1/2-1/2"]
[Round "02"]
[TimeControl "180+2"]
[Date "2023.04.18"]
[WhiteClock "0:00:08"]
[BlackClock "0:00:10"]

1. Nf3 {[%clk 0:03:00]}  Nf6 {[%clk 0:02:59]} 2. b3 {[%clk 0:03:01]}  g6 {[%clk 0:02:59]} 3. Bb2 {[%clk 0:03:01]}  Bg7 {[%clk 0:03:00]} 4. g3 {[%clk 0:03:02]}  O-O {[%clk 0:03:00]} 5. d4 {[%clk 0:03:03]}  d6 {[%clk 0:03:00]} 6. Bg2 {[%clk 0:03:04]}  Nbd7 {[%clk 0:03:01]} 7. O-O {[%clk 0:03:04]}  c6 {[%clk 0:03:00]} 8. c4 {[%clk 0:03:05]}  Qc7 {[%clk 0:03:00]} 9. Nc3 {[%clk 0:03:05]}  Re8 {[%clk 0:02:59]} 10. e4 {[%clk 0:03:06]}  e5 {[%clk 0:02:59]} 11. Qd2 {[%clk 0:03:06]}  a5 {[%clk 0:02:55]} 12. h3 {[%clk 0:03:05]}  a4 {[%clk 0:02:50]} 13. Rae1 {[%clk 0:02:46]}  exd4 {[%clk 0:02:36]} 14. Nxd4 {[%clk 0:02:47]}  Nc5 {[%clk 0:02:29]} 15. b4 {[%clk 0:02:41]}  a3 {[%clk 0:02:24]} 16. Ba1 {[%clk 0:02:41]}  Ne6 {[%clk 0:02:18]} 17. f4 {[%clk 0:02:15]}  Nxd4 {[%clk 0:02:13]} 18. Qxd4 {[%clk 0:02:15]}  Nh5 {[%clk 0:02:12]} 19. Qd3 {[%clk 0:02:13]}  Qb6+ {[%clk 0:02:04]} 20. Kh2 {[%clk 0:02:12]}  Qxb4 {[%clk 0:02:03]} 21. Rb1 {[%clk 0:02:09]}  Qa5 {[%clk 0:01:59]} 22. Ne2 {[%clk 0:02:04]}  Qc7 {[%clk 0:01:51]} 23. Bxg7 {[%clk 0:02:03]}  Nxg7 {[%clk 0:01:52]} 24. Qd4 {[%clk 0:02:04]}  Ne6 {[%clk 0:01:50]} 25. Qd2 {[%clk 0:01:44]}  Nc5 {[%clk 0:01:50]} 26. Nc3 {[%clk 0:01:44]}  Be6 {[%clk 0:01:40]} 27. Rb4 {[%clk 0:01:41]}  Qa5 {[%clk 0:01:30]} 28. Rfb1 {[%clk 0:01:37]}  Qa6 {[%clk 0:01:29]} 29. Qxd6 {[%clk 0:01:33]}  Qa7 {[%clk 0:01:27]} 30. Rb6 {[%clk 0:01:29]}  Qa5 {[%clk 0:01:22]} 31. R6b4 {[%clk 0:01:14]}  Rad8 {[%clk 0:01:20]} 32. Qe5 {[%clk 0:01:07]}  Bxh3 {[%clk 0:01:10]} 33. Qg5 {[%clk 0:01:07]}  Bxg2 {[%clk 0:00:53]} 34. Kxg2 {[%clk 0:01:08]}  h6 {[%clk 0:00:48]} 35. Qxh6 {[%clk 0:01:04]}  Rd2+ {[%clk 0:00:45]} 36. Kf3 {[%clk 0:00:57]}  Nd3 {[%clk 0:00:35]} 37. Rh1 {[%clk 0:00:54]}  Rf2+ {[%clk 0:00:31]} 38. Ke3 {[%clk 0:00:26]}  Qc5+ {[%clk 0:00:30]} 39. Kxd3 {[%clk 0:00:26]}  Rd8+ {[%clk 0:00:22]} 40. Nd5 {[%clk 0:00:26]}  Rxd5+ {[%clk 0:00:16]} 41. exd5 {[%clk 0:00:22]}  Rf3+ {[%clk 0:00:16]} 42. Kc2 {[%clk 0:00:21]}  Rf2+ {[%clk 0:00:13]} 43. Kb3 {[%clk 0:00:10]}  Rf3+ {[%clk 0:00:10]} 44. Kc2 {[%clk 0:00:11]}  Rf2+ {[%clk 0:00:10]} 45. Kb3 {[%clk 0:00:09]}  Rf3+ {[%clk 0:00:10]} 46. Kc2 {[%clk 0:00:08]} 1/2-1/2


[Site "https://www.chess.com"]

[Event "Titled Tuesday Blitz April 18 Early 2023"]
[White "Koridze, Lile"]
[Black "jinbojinbo"]
[WhiteFideId "13612514"]
[WhiteElo "2047"]
[BlackElo "2711"]
[Result "0-1"]
[Round "02"]
[TimeControl "180+2"]
[Date "2023.04.18"]
[WhiteClock "0:01:00"]
[BlackClock "0:01:13"]

1. d4 {[%clk 0:03:00]}  Nf6 {[%clk 0:02:58]} 2. c4 {[%clk 0:03:01]}  g6 {[%clk 0:02:58]} 3. Nc3 {[%clk 0:03:01]}  c5 {[%clk 0:02:58]} 4. d5 {[%clk 0:02:59]}  Bg7 {[%clk 0:02:58]} 5. e4 {[%clk 0:02:58]}  d6 {[%clk 0:02:57]} 6. Nf3 {[%clk 0:02:59]}  e6 {[%clk 0:02:58]} 7. Be2 {[%clk 0:02:59]}  exd5 {[%clk 0:02:58]} 8. exd5 {[%clk 0:03:00]}  O-O {[%clk 0:02:58]} 9. O-O {[%clk 0:03:00]}  Re8 {[%clk 0:02:59]} 10. Bg5 {[%clk 0:03:00]}  h6 {[%clk 0:02:57]} 11. Bh4 {[%clk 0:03:00]}  Bg4 {[%clk 0:02:48]} 12. h3 {[%clk 0:02:58]}  Bxf3 {[%clk 0:02:47]} 13. Bxf3 {[%clk 0:02:59]}  Nbd7 {[%clk 0:02:46]} 14. Bg3 {[%clk 0:02:55]}  Ne5 {[%clk 0:02:40]} 15. b3 {[%clk 0:02:54]}  Nfd7 {[%clk 0:02:29]} 16. Rc1 {[%clk 0:02:50]}  Nxf3+ {[%clk 0:02:22]} 17. Qxf3 {[%clk 0:02:50]}  Be5 {[%clk 0:02:20]} 18. Rfe1 {[%clk 0:02:04]}  Bxg3 {[%clk 0:02:17]} 19. Qxg3 {[%clk 0:02:03]}  Rxe1+ {[%clk 0:01:31]} 20. Rxe1 {[%clk 0:02:03]}  Nf6 {[%clk 0:01:31]} 21. Nb5 {[%clk 0:02:01]}  Ne8 {[%clk 0:01:23]} 22. Kh2 {[%clk 0:01:24]}  Qd7 {[%clk 0:01:22]} 23. Qh4 {[%clk 0:01:14]}  a6 {[%clk 0:01:18]} 24. Re7 {[%clk 0:00:59]}  Qd8 {[%clk 0:01:18]} 25. Rxe8+ {[%clk 0:01:00]}  Qxe8 {[%clk 0:01:16]} 26. Nc7 {[%clk 0:01:00]}  Qd8 {[%clk 0:01:13]} 0-1


[Site "https://www.chess.com"]